Cogmind - Beta 17 @@@ ROGUE MODE // 2026.07.07 @ 17:29:47 Player: kite Result: Self-destructed Performance ------------- Evolutions (4) 2000 Regions Visited (11) 2200 Robots Destroyed (135) 675 Value Destroyed (7428) 7428 Prototype IDs (35) 700 Alien Tech Used (0) 0 Bonus (2749) 2749 TOTAL SCORE: 15752 Bonus ------- High Alert Combat Kills 1544 Follower Combat Kills 262 Entered Garrisons 400 Entered DSFs 500 Aligned with FarCom 300 Friendly Fire -257 Cogmind --------- Core Integrity 718/850 Matter 134/300 Energy 100/100 System Corruption 14% Temperature Cool (0) Movement Treading (317) Ox2 Location -6/Factory Parts ------- > --- POWER (1) -------- (None) > --- PROPULSION (6) --- Armored Treads Advanced Treads > --- UTILITY (5) ------ Huge Storage Unit Improved Melee Analysis Suite Core Analyzer Thermal Shield > --- WEAPON (3) ------- Heavy Flail Heavy Flail > --- INVENTORY (25) --- Armored Treads Actuator Array Hardened Medium Armor Plating Powered Armor Powered Armor Powered Armor Drone Bay (2/2) Drone Bay (2/2) Drone Bay (0/2) AWS/Thermal Heavy Plasma Cannon Shotgun Heavy Flail Heavy Flail Heavy Flail Heavy Flail Power Maul Peak State ------------ > --- POWER ------------ Deuterium Engine > --- PROPULSION ------- Light Treads Light Treads Armored Treads Armored Treads Advanced Treads Medium Treads > --- UTILITY ---------- Huge Storage Unit Improved Melee Analysis Suite Core Analyzer Powered Armor Drone Bay > --- WEAPON ----------- Heavy Flail Heavy Flail Power Maul > --- INVENTORY -------- Light Treads Light Treads Armored Treads Actuator Array Hardened Medium Armor Plating Powered Armor Powered Armor Powered Armor Thermal Shield Drone Bay AWS/Thermal Heavy Plasma Cannon Shotgun Rocket Launcher Heavy Flail Heavy Flail Heavy Flail Heavy Flail [Rating: 53] Favorites ----------- Power Light Ion Engine Engine Light Ion Engine Power Core Micro Nuclear Core Propulsion Light Treads Treads Light Treads Leg Aluminum Leg Utility Large Storage Unit Device Kinecellerator Storage Large Storage Unit Processor Core Analyzer Hackware Hacking Suite Protection Powered Armor Weapon Assault Rifle Energy Gun Small Laser Ballistic Gun Assault Rifle Launcher Grenade Launcher Special Weapon Remote Datajack Impact Weapon Heavy Flail Special Melee Weapon Datajack Build | -11 -10 -10 -10 -9 -8 -8 -7 -7 -7 -7 -6 ------- Run | Yrd Mat Min Exi Min Mat Gar Fac Gar Fac DSF Fac Slots Evolved 8 | . . . . . 4 . 2 . . . 2 Power . | . . . . . . . . . . . . Propulsion 4 | . . . . . 2 . . . . . 2 Utility 3 | . . . . . 1 . 2 . . . . Weapon 1 | . . . . . 1 . . . . . . Parts Attached 100 | 6 8 7 2 1 16 9 7 24 . 12 8 Power 12 | 1 1 1 . . 1 2 . 5 . 1 . Engine 7 | 1 1 1 . . 1 . . 3 . . . Core 5 | . . . . . . 2 . 2 . 1 . Reactor . | . . . . . . . . . . . . Propulsion 29 | 2 . 2 1 1 9 3 . 7 . 2 2 Treads 25 | 2 . . . . 9 3 . 7 . 2 2 Leg 4 | . . 2 1 1 . . . . . . . Wheel . | . . . . . . . . . . . . Hover . | . . . . . . . . . . . . Flight . | . . . . . . . . . . . . Utility 33 | 1 3 2 . . 3 1 6 7 . 5 5 Device 9 | . 1 1 . . . . 2 1 . 1 3 Storage 3 | 1 1 . . . . . . . . 1 . Processor 3 | . . . . . 1 . . . . 1 1 Hackware 2 | . . . . . 1 1 . . . . . Protection 16 | . 1 1 . . 1 . 4 6 . 2 1 Artifact . | . . . . . . . . . . . . Weapon 26 | 2 4 2 1 . 3 3 1 5 . 4 1 Energy Gun 8 | . 3 1 . . 2 1 . 1 . . . Energy Cannon . | . . . . . . . . . . . . Ballistic Gun 9 | 2 . 1 . . 1 1 . 3 . 1 . Ballistic Cannon . | . . . . . . . . . . . . Launcher 3 | . 1 . . . . 1 . 1 . . . Special Weapon 1 | . . . . . . . 1 . . . . Impact Weapon 4 | . . . . . . . . . . 3 1 Slashing Weapon . | . . . . . . . . . . . . Piercing Weapon . | . . . . . . . . . . . . Special Melee Weapon 1 | . . . 1 . . . . . . . . Unidentified Prototypes 1 | . . . . . 1 . . . . . . Corrupted Parts 1 | . . . . . . . . . . . 1 System Corruption 14 | . . . . . . . . . . . 14 Parts Lost 17 | . . 2 . 1 . . . 6 . 1 7 Power 3 | . . . . . . . . 1 . . 2 Propulsion 5 | . . 1 . 1 . . . 1 . . 2 Utility 6 | . . 1 . . . . . 2 . 1 2 Weapon 3 | . . . . . . . . 2 . . 1 Highest Loss Streak 5 | . . 2 . 1 . . . 3 . 1 5 To Critical Strikes 1 | . . . . . . . . 1 . . . Average Backups 13 | 1 7 14 13 13 13 14 14 13 14 14 16 Power . | . 1 2 1 1 . . . . 1 1 . Propulsion 4 | . 2 4 2 2 6 4 5 3 3 3 1 Utility 3 | . . 1 3 3 2 3 3 4 6 5 5 Weapon 4 | . 2 4 6 6 4 5 4 3 4 4 7 Tool/Special . | . . . . . . . . . . . . Unused Backups 24 | . . . 1 . 8 1 2 2 . 1 9 Power 2 | . . . . . . . 1 1 . . . Propulsion 5 | . . . . . 5 . . . . . . Utility 9 | . . . 1 . 3 1 . . . . 4 Weapon 8 | . . . . . . . 1 1 . 1 5 Tool/Special . | . . . . . . . . . . . . Average Slot Usage (%) 96 | . 93 100 100 99 94 90 97 98 100 96 98 Engine 7 | . 13 14 14 14 9 4 . 5 7 3 1 Core 2 | . . . . . . 4 7 1 . 3 4 Treads 26 | . 27 10 . . 32 36 30 30 30 30 38 Leg 5 | . . 17 28 27 1 . . . . . . Device 4 | . 7 6 . . . . 6 9 7 1 5 Storage 9 | . 14 14 14 14 9 9 7 7 7 7 6 Processor 5 | . . . . . 4 9 7 7 7 14 12 Protection 10 | . 2 7 14 14 11 8 13 12 15 13 6 Energy Gun 7 | . 10 19 . . 5 17 1 1 . . . Ballistic Gun 12 | . 15 7 15 27 18 . 19 19 23 12 . Impact Weapon 1 | . . . . . . . . . . 7 19 Special Melee Weapon 1 | . . . 12 . . . . . . . . Peak Build Rating 53 | 6 10 11 13 12 26 42 47 50 43 47 53 Average Rating 30 | 4 8 9 11 11 20 40 37 44 43 42 48 On Entrance 23 | . 6 8 11 12 12 26 42 37 43 43 44 Avg Prop Armor Cover (%) 11 | . . 11 . . . . . . . . . Naked Turns . | . . . . . . . . . . . . Heaviest Build 118 | 13 30 32 30 30 38 42 49 67 67 118 115 Greatest Support 130 | 40 40 40 20 20 82 82 82 82 80 80 130 Greatest Overweight (x) 8 | 1 8 2 1 2 1 . . . . 1 1 Average Overweight (x) . | . . . 1 1 . . . . . . . Largest Inventory Capacity 25 | 8 15 15 15 15 15 15 15 15 15 25 25 Average Capacity 15 | 7 13 15 15 15 15 15 15 15 15 20 25 Most Carried 20 | 3 11 15 15 15 15 15 15 15 15 18 20 Average Carried 14 | 1 7 14 14 14 14 14 14 14 15 15 17 Final Capacity 25 | 8 15 15 15 15 15 15 15 15 15 25 25 Final Carried 18 | 3 11 15 14 15 15 15 15 15 15 18 18 Class Distribution -------------------- 32% | Mutant 25% | Skirmisher 24% | Scavenger-Gunner 6% | Gladiator 3% | Scavenger-Tank 3% | Scavenger-Mutant Dominant Class ---------------- Mutant | -10/Materials Mutant | -10/Mines Mutant | -10/Exiles Mutant | -9/Mines Skirmisher | -8/Materials Skirmisher | -8/Garrison Scavenger-Gunner | -7/Factory Scavenger-Gunner | -7/Garrison Scavenger-Gunner | -7/Factory Scavenger-Mutant | -7/DSF Gladiator | -6/Factory Resources | -11 -10 -10 -10 -9 -8 -8 -7 -7 -7 -7 -6 ----------- Run | Yrd Mat Min Exi Min Mat Gar Fac Gar Fac DSF Fac Matter Collected 3420 | 145 131 423 48 192 199 416 137 1218 . 252 259 Remotely . | . . . . . . . . . . . . Salvage Created 5898 | 16 281 264 . 198 344 1128 286 2000 . 234 1147 Parts 291 | 2 28 13 . 15 28 55 15 90 . 13 32 Haulers Intercepted 4 | . . . . . 1 . . . . . 3 Recyclers Shooed 4 | . . 1 . 1 1 . . . . . 1 Parts Field Recycled . | . . . . . . . . . . . . Retrieved Matter . | . . . . . . . . . . . . Parts Self-Destructed . | . . . . . . . . . . . . Prevented . | . . . . . . . . . . . . Parts Restored . | . . . . . . . . . . . . Kills | -11 -10 -10 -10 -9 -8 -8 -7 -7 -7 -7 -6 ------- Run | Yrd Mat Min Exi Min Mat Gar Fac Gar Fac DSF Fac Combat Hostiles Destroyed 112 | . 8 9 . 6 8 20 4 45 . 5 7 Melee 1 | . . . . . . . . . . . 1 Guns 95 | . 3 9 . 6 8 20 4 40 . 5 . AOE 13 | . 5 . . . . . . 5 . . 3 Classes Destroyed 16 | 1 3 2 . 1 3 3 1 1 . 1 . Worker 8 | . 1 1 . . 1 . 1 . . . 4 Builder 4 | . 2 1 . . . . . . . . 1 Tunneler 2 | 1 . . . . . . 1 . . . . Hauler 4 | . . . . . 1 . . . . . 3 Recycler 6 | . . . . . . . 1 . . . 5 Watcher 1 | . . . . . 1 . . . . . . Swarmer 17 | . . 1 . 3 4 . . 9 . . . Grunt 54 | . 8 4 . 2 1 3 2 26 . 2 6 Brawler 4 | . . . . 1 . 1 . 2 . . . Duelist 1 | . . . . . . . . 1 . . . Sentry 18 | . . . . . 3 12 . 3 . . . Specialist 3 | . . . . . . . . 1 . 2 . Hunter 3 | . . . . . . 1 1 . . . 1 Programmer 7 | . . . . . . 3 1 3 . . . Heavy 1 | . . . . . . . . . . 1 . Assembled 4 | . . 4 . . . . . . . . . Thug 1 | . . . . . . 1 . . . . . Butcher 1 | . . . . . . 1 . . . . . Best Kill Streak 9 | 1 5 2 . 3 3 4 2 6 . 3 9 Combat Bots Only 6 | . 4 2 . 3 3 4 2 6 . 3 3 Max Kills in Single Turn 3 | 1 3 1 . 1 2 1 2 2 . 1 2 Gunslinging 1 | . . . . . 1 . . 1 . . . Exploded 2 | . 2 . . . . . . 1 . . 2 Melee 1 | . . . . . . . . . . . 1 Uniques/NPCs Destroyed . | . . . . . . . . . . . . Combat | -11 -10 -10 -10 -9 -8 -8 -7 -7 -7 -7 -6 -------- Run | Yrd Mat Min Exi Min Mat Gar Fac Gar Fac DSF Fac Hostile Shots Fired 586 | . 24 52 . 38 29 27 23 205 . 34 154 Missed 176 | . 9 15 . 9 8 9 4 57 . 19 46 Hits 410 | . 15 37 . 29 21 18 19 148 . 15 108 Melee 22 | . . . . 5 . . . 9 . . 8 Projectile 388 | . 15 37 . 24 21 18 19 139 . 15 100 Critical Strikes 21 | . . 2 . 2 . 1 1 7 . 1 7 Part Disruptions 1 | . . 1 . . . . . . . . . Damage Taken 5950 | . 191 503 . 351 263 393 364 1755 . 242 1888 Core 615 | . 51 61 . 98 57 14 64 104 . 34 132 Absorbed by Shields 311 | . . . . . . . . 311 . . . Redirected to Shielding 10 | . . . . . . . 10 . . . . Ignored by Resistances 81 | . . . . . . . . . . . 81 Core Remaining (%) 68 | 100 . . . 16 . 87 . . . 71 . Volleys Fired 301 | 1 16 45 . 31 36 36 14 96 . 16 10 Largest 3 | 2 2 2 . 2 3 1 3 3 . 3 1 Hottest 103 | 40 40 80 . 40 103 63 68 86 . 86 33 Shots Fired 697 | 2 26 78 . 62 101 92 34 250 . 43 9 Gun 664 | 2 20 72 . 62 101 90 32 242 . 43 . Cannon . | . . . . . . . . . . . . Launcher 31 | . 6 6 . . . 2 . 8 . . 9 Special 2 | . . . . . . . 2 . . . . Kinetic 421 | 2 20 13 . 62 73 2 32 174 . 43 . Thermal 243 | . . 59 . . 28 88 . 68 . . . Explosive 31 | . 6 6 . . . 2 . 8 . . 9 Electromagnetic . | . . . . . . . . . . . . Robot Hit Streak 24 | 1 5 11 . 9 14 16 15 24 . 6 2 Robot Miss Streak 6 | . 1 3 . 5 6 3 3 3 . 4 2 Penetration Max 1 | . . . . . . . . 1 . 1 . Secondary Targets 11 | . 1 . . . 1 . . 7 . 2 . Max Gunslinging Chain 1 | . 1 . . . 1 . . 1 . 1 . Autonomous 105 | . . . . . . 55 . 50 . . . Shots Hit Robots 452 | 1 13 48 3 36 53 63 22 152 . 32 29 Core Hits 255 | 1 17 21 . 10 20 27 10 88 . 28 33 Critical Kills 3 | . . . . . . . . 1 . . 2 Critical Parts Destroyed 3 | . . . . . 1 . 1 . . . 1 Critical Strikes 7 | . . . . . 1 1 1 1 . . 3 Burn 1 | . . . . . . 1 . . . . . Destroy 3 | . . . . . 1 . 1 1 . . . Smash 3 | . . . . . . . . . . . 3 Melee Attacks 46 | . . . 3 . . . . . . . 43 Impact 43 | . . . . . . . . . . . 43 Slashing . | . . . . . . . . . . . . Piercing . | . . . . . . . . . . . . Sneak Attacks 14 | . . . 3 . . . . . . . 11 Combat Hostiles . | . . . . . . . . . . . . Follow-up Attacks 9 | . . . . . . . . . . . 9 Damage Inflicted 12062 | 10 501 560 . 435 709 1601 360 4105 . 675 3106 Guns 8046 | 10 138 535 . 435 692 1552 360 3649 . 675 . Cannons . | . . . . . . . . . . . . Explosions 2174 | . 363 8 . . . 49 . 456 . . 1298 Melee 1808 | . . . . . . . . . . . 1808 Ramming 34 | . . 17 . . 17 . . . . . . Kinetic 4386 | 10 138 80 . 435 464 . 360 2224 . 675 . Thermal 3660 | . . 455 . . 228 1552 . 1425 . . . Explosive 2174 | . 363 8 . . . 49 . 456 . . 1298 Electromagnetic . | . . . . . . . . . . . . Impact 1808 | . . . . . . . . . . . 1808 Slashing . | . . . . . . . . . . . . Piercing . | . . . . . . . . . . . . Highest Corruption 14 | . . . . . 7 8 . 13 13 13 14 Average Corruption 9 | . . . . . 6 7 . 12 13 13 14 Corruption Purged . | . . . . . . . . . . . . Corruption Blocked . | . . . . . . . . . . . . Effects 142 | . . . . . 13 46 . 51 . 18 14 Message Errors 41 | . . . . . 4 16 . 11 . 4 6 Matter Fused 24 | . . . . . 2 7 . 9 . 5 1 Heat Flow Errors 17 | . . . . . 3 7 . 5 . . 2 Energy Discharges 18 | . . . . . 1 5 . 8 . 3 1 Parts Rejected 2 | . . . . . . . . 1 . 1 . Data Loss (minor) 23 | . . . . . 1 7 . 13 . . 2 Data Loss (major) 7 | . . . . . . 3 . 2 . 2 . Misfires 3 | . . . . . 1 1 . 1 . . . Alerts 2 | . . . . . 1 . . . . . 1 Weapon Failures 5 | . . . . . . . . 1 . 3 1 Overload Shots . | . . . . . . . . . . . . Overflow Damage 450 | . . . . . . . . . . . 450 Projectiles . | . . . . . . . . . . . . Explosions 2 | . . . . . . . . . . . 2 Melee 448 | . . . . . . . . . . . 448 Knockbacks 6 | . . . . . 1 . . . . . 5 Impact 6 | . . . . . 1 . . . . . 5 Kinetic . | . . . . . . . . . . . . Secondary . | . . . . . . . . . . . . Self-Inflicted Damage 89 | . . . . . . 25 . . . . 64 Shots 3 | . . . . . . 1 . . . . 2 Rammed 7 | . . 4 . . 3 . . . . . . Targets Rammed 8 | . . 5 . . 3 . . . . . . Kicked . | . . . . . . . . . . . . Crushed 1 | . . 1 . . . . . . . . . Highest Temperature 598 | . 18 353 . 1 304 272 113 345 . 598 120 Average Temperature 90 | . 9 142 . 1 74 65 48 91 . 194 39 Received Heat Transfer 1746 | . 108 398 . 54 81 72 72 439 . 45 477 Effects 13 | . . 2 . . . 1 . 5 . 5 . Energy Bleed 2 | . . 1 . . . 1 . . . . . Interference 9 | . . 1 . . . . . 5 . 3 . Matter Decay 1 | . . . . . . . . . . 1 . Short Circuit 1 | . . . . . . . . . . 1 . Siege Activations . | . . . . . . . . . . . . Martial Activations . | . . . . . . . . . . . . Shielding Activations . | . . . . . . . . . . . . Robots Disrupted . | . . . . . . . . . . . . Combat Hostiles . | . . . . . . . . . . . . Robots Corrupted 7 | . . . . . . . . . . . 7 Combat Hostiles 3 | . . . . . . . . . . . 3 Parts Fried 8 | . . . . . . . . . . . 8 Impact Corruptions 14 | . . . . . . . . . . . 14 Robots Melted . | . . . . . . . . . . . . Combat Hostiles . | . . . . . . . . . . . . Parts Melted 13 | . . . . . . 9 . 4 . . . Heat Transferred 5876 | . . 1050 . . 497 2220 . 2109 . . . Parts Sabotaged 4 | . . . . . . . . . . . 4 Parts Stolen . | . . . . . . . . . . . . Parts Stripped . | . . . . . . . . . . . . Power Chain Reactions . | . . . . . . . . . . . . Alert | -11 -10 -10 -10 -9 -8 -8 -7 -7 -7 -7 -6 ------- Run | Yrd Mat Min Exi Min Mat Gar Fac Gar Fac DSF Fac Maximum Alert Level 5 | . . . . . . 3 2 5 3 3 2 Low Security (%) 37 | 100 100 100 . 100 100 6 . . . . . Level 1 11 | . . . . . . 28 24 6 . . 39 Level 2 18 | . . . . . . 36 75 8 . . 60 Level 3 13 | . . . . . . 28 . 13 100 100 . Level 4 7 | . . . . . . . . 28 . . . Level 5 11 | . . . . . . . . 43 . . . High Security . | . . . . . . . . . . . . Max Security . | . . . . . . . . . . . . Sterilizations 1 | . . . . . . . . . . 1 . Peak Influence 2032 | 5 140 50 . 83 142 947 497 2032 1066 978 626 Initial 1066 | . . . . . 24 88 497 270 1066 746 513 Average 562 | . 70 6 . 28 10 550 434 1332 1066 918 437 Influence Increases 4456 | 5 227 168 . 193 261 879 156 1842 . 282 443 Destroy 0b10 Robot/C 2320 | . 160 100 . 140 160 420 80 920 . 200 140 Destroy 0b10 Robot/NC 130 | 5 15 10 . . 15 5 15 . . . 65 Destroy Leader 280 | . 30 20 . 20 44 10 30 50 . 30 46 Allied During Kill 85 | . . . . 3 . 14 2 14 . 52 . Successful Hack 64 | . 12 . . . 12 12 14 14 . . . Disable Machine 120 | . . 15 . 30 . 30 . 45 . . . Anti-Garrison Action 1250 | . . . . . . 350 . 750 . . 150 Destroy Structure 132 | . 10 23 . . . 8 . 49 . . 42 Lose Combat Pursuer 75 | . . . . . 30 30 15 . . . . Influence Decreases 3880 | 5 227 160 8 130 188 68 716 197 966 370 845 Entered New Map 2413 | . . . 8 . 39 48 450 117 966 320 465 Time Decay 1157 | 5 227 160 . 100 149 . 246 . . . 270 Lost Part 150 | . . . . 10 . . . 60 . 10 70 Lost Ally 160 | . . . . 20 . 20 20 20 . 40 40 Squads Dispatched 19 | . . . . 1 2 . 5 . . 2 9 Investigation 3 | . . . . . . . 1 . . . 2 Extermination 1 | . . . . . . . 1 . . . . Reinforcement 5 | . . . . . . . . . . 2 3 Assault 3 | . . . . 1 . . . . . . 2 Garrison 7 | . . . . . 2 . 3 . . . 2 Intercept . | . . . . . . . . . . . . Searches Triggered . | . . . . . . . . . . . . Construction Impeded 1 | . . . . . . . . . . . 1 Haulers Reinforced 1 | . . . . . . . . . . . 1 Active Scanning Responses . | . . . . . . . . . . . . Cargo Convoy Interrupts . | . . . . . . . . . . . . Stealth | -11 -10 -10 -10 -9 -8 -8 -7 -7 -7 -7 -6 --------- Run | Yrd Mat Min Exi Min Mat Gar Fac Gar Fac DSF Fac Distress Signals 9 | . . 1 . . 3 2 1 . . . 2 Communications Jammed . | . . . . . . . . . . . . Distress Signals . | . . . . . . . . . . . . Times Spotted 159 | . 9 10 . 7 20 26 7 51 . 10 19 Peak Tracking Total 9 | . 4 3 . 4 4 4 3 5 . 4 9 Tactical Retreats 7 | . . 4 . . 1 1 1 . . . . Traps | -11 -10 -10 -10 -9 -8 -8 -7 -7 -7 -7 -6 ------- Run | Yrd Mat Min Exi Min Mat Gar Fac Gar Fac DSF Fac Traps Triggered 14 | . 3 . . . 6 3 1 1 . . . Indirectly . | . . . . . . . . . . . . Trap Hack Attempts . | . . . . . . . . . . . . Triggered . | . . . . . . . . . . . . Disarmed . | . . . . . . . . . . . . Reprogrammed . | . . . . . . . . . . . . Reused . | . . . . . . . . . . . . Traps Extracted . | . . . . . . . . . . . . Installed . | . . . . . . . . . . . . Triggered . | . . . . . . . . . . . . Machines | -11 -10 -10 -10 -9 -8 -8 -7 -7 -7 -7 -6 ---------- Run | Yrd Mat Min Exi Min Mat Gar Fac Gar Fac DSF Fac Machines Disabled 23 | . . 1 . 2 . 8 . 11 . . 1 Max in Single Turn 2 | . . 1 . 1 . 1 . 2 . . 1 Garrison Access 1 | . . . . . . . . . . . 1 Garrison Relay 11 | . . . . . . 5 . 6 . . . Phase Generator 2 | . . . . . . 1 . 1 . . . Machines Repaired . | . . . . . . . . . . . . Machines Dismantled . | . . . . . . . . . . . . Machines Sabotaged . | . . . . . . . . . . . . Overloaded Fab Kills . | . . . . . . . . . . . . Hacking | -11 -10 -10 -10 -9 -8 -8 -7 -7 -7 -7 -6 --------- Run | Yrd Mat Min Exi Min Mat Gar Fac Gar Fac DSF Fac Machines Accessed 19 | . 1 . 2 . 4 2 4 4 1 . 1 Terminals 12 | . 1 . . . 2 2 2 4 1 . . Fabricators . | . . . . . . . . . . . . Repair Stations 1 | . . . . . . . 1 . . . . Recycling Units . | . . . . . . . . . . . . Scanalyzers 1 | . . . . . 1 . . . . . . Garrison Access 3 | . . . . . 1 . 1 . . . 1 Total Hacks 40 | . 6 . 5 . 6 2 8 8 2 . 3 Successful 16 | . 2 . 5 . 3 1 2 2 1 . . Failed 23 | . 3 . . . 3 1 6 6 1 . 3 Catastrophic 7 | . 1 . . . 2 . 1 2 . . 1 Database Lockouts 1 | . 1 . . . . . . . . . . Manual 15 | . 7 . 1 . 2 . 5 . . . . Terminals 25 | . 6 . . . 3 2 4 8 2 . . Fabricators . | . . . . . . . . . . . . Repair Stations 1 | . . . . . . . 1 . . . . Recycling Units . | . . . . . . . . . . . . Scanalyzers 2 | . . . . . 2 . . . . . . Garrison Access 7 | . . . . . 1 . 3 . . . 3 Terminal Hacks 11 | . 1 . 5 . 1 1 . 2 1 . . Record 4 | . . . 4 . . . . . . . . Part Schematic 1 | . 1 . . . . . . . . . . Open Door 1 | . . . . . . . . 1 . . . Open DSF 1 | . . . . . . . . . 1 . . Emergency Access Points 2 | . . . . . . 1 . 1 . . . Locate Traps 1 | . . . . . 1 . . . . . . Proto ID Catalog 1 | . . . 1 . . . . . . . . Fabricator Hacks . | . . . . . . . . . . . . Repair Station Hacks . | . . . . . . . . . . . . Recycling Unit Hacks . | . . . . . . . . . . . . Scanalyzer 1 | . . . . . 1 . . . . . . Retrieve Study 1 | . . . . . 1 . . . . . . Garrison Access Hacks 2 | . . . . . 1 . 1 . . . . Unlock Access 2 | . . . . . 1 . 1 . . . . Unauthorized Hacks 2 | . 1 . . . . . 1 . . . . Terminals 1 | . 1 . . . . . . . . . . Botnet 1 | . 1 . . . . . . . . . . Fabricators . | . . . . . . . . . . . . Repair Stations 1 | . . . . . . . 1 . . . . Mechanics 1 | . . . . . . . 1 . . . . Recycling Units . | . . . . . . . . . . . . Scanalyzers . | . . . . . . . . . . . . Garrison Access . | . . . . . . . . . . . . Data Cores Recovered . | . . . . . . . . . . . . Used . | . . . . . . . . . . . . Hacking Detections 12 | . 1 . . . 3 . 3 3 1 . 1 Full Trace Events 3 | . . . . . . . . 2 . . 1 Feedback Events . | . . . . . . . . . . . . Feedback Blocked . | . . . . . . . . . . . . Robot Schematics Acquired . | . . . . . . . . . . . . Robots Built . | . . . . . . . . . . . . Authchips . | . . . . . . . . . . . . Time . | . . . . . . . . . . . . Total Robot Build Rating . | . . . . . . . . . . . . Part Schematics Acquired 1 | . 1 . . . . . . . . . . Parts Built . | . . . . . . . . . . . . Authchips . | . . . . . . . . . . . . Time . | . . . . . . . . . . . . Total Part Build Rating . | . . . . . . . . . . . . Part Studies Acquired 1 | . . . . . 1 . . . . . . Parts Repaired . | . . . . . . . . . . . . Time . | . . . . . . . . . . . . Parts Recycled . | . . . . . . . . . . . . Recycled Matter . | . . . . . . . . . . . . Retrieved Matter . | . . . . . . . . . . . . Retrieved Components . | . . . . . . . . . . . . Parts Scanalyzed . | . . . . . . . . . . . . Part Schematics Acquired . | . . . . . . . . . . . . Parts Damaged . | . . . . . . . . . . . . Bothacking | -11 -10 -10 -10 -9 -8 -8 -7 -7 -7 -7 -6 ------------ Run | Yrd Mat Min Exi Min Mat Gar Fac Gar Fac DSF Fac Used RIF Installer . | . . . . . . . . . . . . Robots Hacked 4 | . . . 3 . . . 1 . . . . Non-combat 3 | . . . 2 . . . 1 . . . . Combat 1 | . . . 1 . . . . . . . . Robot Hacks Applied 4 | . . . 3 . . . 1 . . . . parse_system 3 | . . . 3 . . . . . . . . find_chute 1 | . . . . . . . 1 . . . . Relay Couplers Released 46 | . . . . . . 22 . 24 . . . Machine Destruction 46 | . . . . . . 22 . 24 . . . Fabnet Peak Effective % . | . . . . . . . . . . . . Robots Rewired 9 | . . . . . . 2 . 7 . . . Allies Hacked . | . . . . . . . . . . . . Hacks Repelled . | . . . . . . . . . . . . Allies | -11 -10 -10 -10 -9 -8 -8 -7 -7 -7 -7 -6 -------- Run | Yrd Mat Min Exi Min Mat Gar Fac Gar Fac DSF Fac Total Allies 12 | . . . . 1 . 4 . 7 . . . Largest Group 4 | . . . . 1 . 2 1 4 4 4 1 Highest-Rated Group 110 | . . . . 31 . 56 24 110 110 110 39 Highest-Rated Ally 39 | . . . . 31 . 31 24 39 39 39 39 Initial Warlord ECA Mod 31 | . . . . . . . 11 11 22 22 31 Total Orders 2 | . . . . . . . . . . . 2 EXPLORE 2 | . . . . . . . . . . . 2 Ally Attacks 59 | . . . . 6 . 11 3 3 . 36 . Total Damage 1136 | . . . . 87 . 268 103 116 . 562 . Kills 9 | . . . . 1 . 2 . 1 . 5 . Allies Corrupted . | . . . . . . . . . . . . Allies Melted . | . . . . . . . . . . . . Intel | -11 -10 -10 -10 -9 -8 -8 -7 -7 -7 -7 -6 ------- Run | Yrd Mat Min Exi Min Mat Gar Fac Gar Fac DSF Fac Active Infowar (turns) . | . . . . . . . . . . . . Robot Analysis Total . | . . . . . . . . . . . . Derelict Logs Recovered 1 | . . 1 . . . . . . . . . Drone Launches 2 | . . . . . . . . . . . 2 Drone Recoveries . | . . . . . . . . . . . . Exploration | -11 -10 -10 -10 -9 -8 -8 -7 -7 -7 -7 -6 ------------- Run | Yrd Mat Min Exi Min Mat Gar Fac Gar Fac DSF Fac Turns Passed 8886 | 76 520 921 754 313 1107 1615 529 2111 4 347 589 Spaces Moved 4195 | 43 276 306 391 113 526 917 274 1015 3 131 200 Core 9 | 8 1 . . . . . . . . . . Treads 3453 | 35 275 117 . . 486 917 274 1015 3 131 200 Legs 733 | . . 189 391 113 40 . . . . . . Wheels . | . . . . . . . . . . . . Hover . | . . . . . . . . . . . . Flight . | . . . . . . . . . . . . Fastest Speed 50 | 50 160 160 190 190 158 161 161 160 160 160 160 Average Speed 167 | 145 161 181 190 191 162 161 161 161 160 206 162 Slowest Speed 450 | 160 450 260 190 260 240 161 161 165 160 245 242 Overloaded Moves . | . . . . . . . . . . . . Propulsion Burnouts . | . . . . . . . . . . . . Robots Hopped . | . . . . . . . . . . . . Potential Cave-ins . | . . . . . . . . . . . . Cave-ins Triggered . | . . . . . . . . . . . . Exploration Rate (%) 48 | 3 44 65 60 32 40 98 9 97 . 72 10 Regions Visited 11 Branch Regions 3 Pre-discovered Areas 2 | . . 1 1 . . . . . . . . Known Exits Taken 3 | . . . . . 1 . 1 . 1 . . Unknown Exits Taken 5 | 1 1 1 1 1 . . . . . . . Scrap Searched . | . . . . . . . . . . . . Spaces Dug 7 | . . . . . . . . . . . 7 Terrain Destroyed 174 | . 10 34 . . . 8 . 85 . . 37 Melee 7 | . . . . . . . . . . . 7 Projectile 5 | . . . . . . . . 5 . . . AOE 162 | . 10 34 . . . 8 . 80 . . 30 Terrain Rammed . | . . . . . . . . . . . . Walls Destroyed . | . . . . . . . . . . . . Machines Disabled . | . . . . . . . . . . . . Actions | -11 -10 -10 -10 -9 -8 -8 -7 -7 -7 -7 -6 --------- Run | Yrd Mat Min Exi Min Mat Gar Fac Gar Fac DSF Fac Total 5485 | 52 320 589 403 147 711 1025 339 1332 2 177 388 Wait 525 | . 5 213 1 1 77 28 22 53 . 2 123 Move 4184 | 42 275 305 390 112 526 915 273 1014 2 130 200 Hop . | . . . . . . . . . . . . Pick Up 74 | 3 3 7 2 1 21 6 7 14 . 4 6 Fast Attach 54 | 6 12 . . 1 9 1 5 11 . 7 2 Attach 26 | . . 2 . . 1 2 3 8 . 1 9 Detach 7 | . 3 . . . . 1 . 1 . 1 1 Swap 68 | . 6 9 2 1 8 9 4 18 . 5 6 Drop 100 | . . 3 5 . 30 11 11 27 . 11 2 Fire 301 | 1 16 45 . 31 36 36 14 96 . 16 10 Melee 32 | . . . 3 . . . . . . . 29 Ram . | . . . . . . . . . . . . Kick . | . . . . . . . . . . . . Crush 8 | . . 5 . . 3 . . . . . . Escape Stasis 5 | . . . . . . 1 . 4 . . . Rewire 101 | . . . . . . 15 . 86 . . . Trap . | . . . . . . . . . . . . Miscellaneous . | . . . . . . . . . . . . Route ------- -11/Scrapyard -10/Materials (discovered 2 exits: [*Mat] / [*Min]) -10/Mines (discovered 3 exits: [*Mat] / *Exi / [*Sub]) -10/Exiles -9/Mines -8/Materials (discovered 2 exits: Fac / Gar) -8/Garrison (discovered 3 exits: *Fac x3) -7/Factory (discovered 2 exits: *Fac / Gar) -7/Garrison (discovered 3 exits: *Fac x3) -7/Factory -7/DSF -6/Factory History --------- Turn | Location | Event 4 | -11/Scrapyard | Discovered new exit (range 15) 77 | -11/Scrapyard | Entered Materials 201 | -10/Materials | Central database locked down 302 | -10/Materials | Build established: Mutant 427 | -10/Materials | Discovered new exit (range 5) 435 | -10/Materials | Discovered new exit (range 16) 597 | -10/Materials | Entered Mines 598 | -10/Mines | Met a Derelict bent on vengeance 693 | -10/Mines | Learned location of 1 exit from Materials 752 | -10/Mines | Assembled infested the area 1235 | -10/Mines | Discovered new exit (range 6) 1238 | -10/Mines | Learned location of Storage (-8) 1355 | -10/Mines | Discovered new exit (range 7) 1448 | -10/Mines | Received a Rocket Launcher from a helpful Derelict 1511 | -10/Mines | Deemed a non-threat by the Exiles lab entrance 1511 | -10/Mines | Discovered new exit (range 5) 1518 | -10/Mines | Entered Exiles 1566 | -10/Exiles | Met 8R-AWN 1598 | -10/Exiles | Met EX-HEX 1730 | -10/Exiles | Met EX-BIN 1754 | -10/Exiles | Aligned with FarCom system 1756 | -10/Exiles | Given EX-Vault access code 1800 | -10/Exiles | Opened EX-Vault 1813 | -10/Exiles | Found Lightpack 2.0 1866 | -10/Exiles | Warned to stay clear of 0b10 Research branches 1994 | -10/Exiles | Found AWS/Thermal 2086 | -10/Exiles | Met EX-DEC 2147 | -10/Exiles | Learned location of Zion (-6) 2257 | -10/Exiles | Discovered new exit (range 10) 2272 | -10/Exiles | Left Exiles lab with AWS/Thermal 2272 | -10/Exiles | Entered Mines 2273 | -9/Mines | Met a Derelict testing a Signal Generator 2386 | -9/Mines | Core integrity fell below 50% 2529 | -9/Mines | Core integrity fell below 20% 2564 | -9/Mines | Discovered new exit (range 10) 2585 | -9/Mines | Entered Materials 2585 | -8/Materials | Evolved 4 slots: Propulsion x2, Utility x1, Weapon x1 2586 | -8/Materials | Identified exit to Factory 3407 | -8/Materials | Build established: Skirmisher 3692 | -8/Materials | Identified exit to Garrison 3692 | -8/Materials | Entered Garrison 3748 | -8/Garrison | Triggered checkpoint 3799 | -8/Garrison | Garrison Relay disabled 3817 | -8/Garrison | Phase Generator disabled 3822 | -8/Garrison | Triggered checkpoint 3858 | -8/Garrison | Triggered checkpoint 3882 | -8/Garrison | Triggered checkpoint 3992 | -8/Garrison | Triggered checkpoint 4063 | -8/Garrison | Discovered exit to Factory (range 10) 4067 | -8/Garrison | Rescued a captive Derelict 4068 | -8/Garrison | Rescued a captive Derelict 4238 | -8/Garrison | Triggered checkpoint 4265 | -8/Garrison | Garrison Relay disabled 4370 | -8/Garrison | Triggered checkpoint 4450 | -8/Garrison | Triggered checkpoint 4471 | -8/Garrison | Discovered exit to Factory (range 11) 4511 | -8/Garrison | Garrison Relay disabled 4849 | -8/Garrison | Garrison Relay disabled 4930 | -8/Garrison | Triggered checkpoint 4950 | -8/Garrison | Discovered exit to Factory (range 11) 4984 | -8/Garrison | Garrison Relay disabled 5058 | -8/Garrison | Attempted to access garrison exit controls, blocked by remote lockdown 5307 | -8/Garrison | Entered Factory 5307 | -7/Factory | Accompanied by 1 ally 5307 | -7/Factory | Evolved 2 slots: Utility x2 5499 | -7/Factory | Garrison activated, responded to threat 5634 | -7/Factory | Build established: Scavenger-Gunner 5692 | -7/Factory | Discovered new exit (range 12) 5817 | -7/Factory | Identified exit to Garrison 5836 | -7/Factory | Entered Garrison 5866 | -7/Garrison | Triggered checkpoint 5978 | -7/Garrison | Phase Generator disabled 6022 | -7/Garrison | Garrison Relay disabled 6126 | -7/Garrison | Build established: Scavenger-Tank 6180 | -7/Garrison | Triggered checkpoint 6204 | -7/Garrison | Triggered checkpoint 6205 | -7/Garrison | AWS/Thermal suddenly broke down 6326 | -7/Garrison | Garrison Relay disabled 6366 | -7/Garrison | Discovered new exit (range 12) 6368 | -7/Garrison | Triggered checkpoint 6404 | -7/Garrison | Triggered checkpoint 6436 | -7/Garrison | Garrison Relay disabled 6762 | -7/Garrison | P-60 Hacker assimilated allied Gladiator 4a 6767 | -7/Garrison | P-60 Hacker assimilated allied Gladiator 4c 6785 | -7/Garrison | Garrison Relay disabled 6798 | -7/Garrison | System corruption reached 10% 6833 | -7/Garrison | Lost 3 parts (2u1w) 6943 | -7/Garrison | Found Powered Armor 6947 | -7/Garrison | Found Powered Armor 6953 | -7/Garrison | Found Powered Armor 6955 | -7/Garrison | Found Powered Armor 6959 | -7/Garrison | Found Powered Armor 6962 | -7/Garrison | Found Powered Armor 6981 | -7/Garrison | Build established: Scavenger-Gunner 7110 | -7/Garrison | Triggered checkpoint 7113 | -7/Garrison | Discovered new exit (range 13) 7200 | -7/Garrison | Garrison Relay disabled 7202 | -7/Garrison | Triggered checkpoint 7522 | -7/Garrison | Triggered checkpoint 7542 | -7/Garrison | Garrison Relay disabled 7620 | -7/Garrison | Discovered new exit (range 13) 7947 | -7/Garrison | Entered Factory 7947 | -7/Factory | Accompanied by 4 allies 7951 | -7/Factory | Identified exit to DSF 7951 | -7/Factory | Entered DSF 7951 | -7/DSF | Accompanied by 4 allies 7979 | -7/DSF | Additional patrols routed to DSF 8187 | -7/DSF | Sterilization system engaged 8207 | -7/DSF | Ambient heat levels rising (+10) 8222 | -7/DSF | Ambient heat levels rising (+10) 8237 | -7/DSF | Ambient heat levels rising (+10) 8252 | -7/DSF | Ambient heat levels rising (+10) 8266 | -7/DSF | Discovered new exit (range 14) 8267 | -7/DSF | Ambient heat levels rising (+10) 8282 | -7/DSF | Ambient heat levels rising (+10) 8297 | -7/DSF | Ambient heat levels rising (+10) 8298 | -7/DSF | Entered Factory 8298 | -6/Factory | Accompanied by 1 ally 8298 | -6/Factory | Evolved 2 slots: Propulsion x2 8598 | -6/Factory | Build established: Gladiator 8612 | -6/Factory | Garrison activated, responded to threat 8620 | -6/Factory | System corruption reached 10% 8874 | -6/Factory | Garrison activated, responded to threat 8887 | -6/Factory | Self-destructed Last Messages --------------- 08880_ U-05 Engineer lays Concrete. 08881_ U-05 Engineer builds a Wall. 08881_ Acquired Arm. Treads. 08882_ Arm. Treads severed. 08883_ Slug penetrates Wall. 08883_ G-50 Soldier destroyed. 08883_ G-67 Veteran destroyed. 08883_ K-01 Serf collects debris. 08885_ U-05 Engineer destroyed. 08885_ K-01 Serf destroyed. 08886_ Penetrated by Slug. 08886_ Powered Armor destroyed. 08886_ Penetrated by Slug. 08886_ Rocket Launcher destroyed. 08886_ Penetrated by Slug. 08886_ Lgt. Treads destroyed. 08886_ U-05 Engineer lays Concrete. 08887_ System corrupted: Component data lost. 08887_ Deuterium Engine destroyed. 08887_ Lgt. Treads destroyed. Map ----- +----------------------------------------------------+ | "" # # ###/######?????????????????????? | | "" %#########% # % % #?????????????????????? | | # ""G " #?????????????????????? | | % # " " #?????????????????????? | | # ! #?????????????????????? | | # ! #?????????????????????? | | # """ #?????????????????????? | | ###/####[ """"" #?????????????????????? | | # ## """"" #?????????????????????? | | + ## #?????????????????????? | | # ###"##+####?????????????????????? | | # #?#### #????????????????????????? | | # "" #????# #??????"?????????????????? | | # """ ######+#####? ?????????????????? | | ######## ### "F ## #? ?????????????????? | | ???????# #?# """ ## # ?????????????????? | | ???????# #?# """ ## # " ??? "???????????? | | ???????# ??# """ ## ! # """ ???????????? | | ???????# ??# ## ! G !!??????????? | | ??######+#######/## ! """ !!??????????? | | ??# # ## " !!??????????? | | ??# ! # ## h [Y ?????????? | | ??# # ######## ! ![g]= ## ?????????? | | ??# # u uu =%h ][ % ???????? | | ??# # ! k !|u u% ! % ???????? | | ??# +!k= @g !*[% * ???????? | | ??# # = = l g ????????? | | ??# ]]* # = ????????? | | ??# ]] ####;########## ##### ????????? | | ??# ]* # #??##????????????????? | | ??# # #????????????????????? | | ??# # #????????????????????? | | ??############## [ #????????????????????? | | ???????????????# #????????????????????? | | ???????????????# = #????????????????????? | | ???????????????# #????????????????????? | | ???????????????# #????????????????????? | | ???????????????# #????????????????????? | | ???????????????# #????????????????????? | | ???????????????# #????????????????????? | | ???????????????# #????????????????????? | | ???????????????##############????????????????????? | | ?????????????????????????????????????????????????? | | ?????????????????????????????????????????????????? | | ?????????????????????????????????????????????????? | | ?????????????????????????????????????????????????? | | ?????????????????????????????????????????????????? | | ?????????????????????????????????????????????????? | | ?????????????????????????????????????????????????? | | ?????????????????????????????????????????????????? | +----------------------------------------------------+ Best States ------------- Heat Dissipation 39 Energy Generation 18 Energy Capacity 290 Matter Stores 300 Matter Capacity 300 Sight Range 16 Terrain Scan Density 10 Armor Coverage 800 Resistance: TH 20 Propulsion Shielding 33 Evasion (%) 40 Melee Accuracy 6 Core Analysis 6 Armor Integrity Analysis 30 Recoil Reduction 6 Energy Filtering 30 Kinecelleration 30 Offensive Hacking 10 Item Schematics ----------------- Hcp. Storage Unit | -10/Materials | Hacked Robot Schematics ------------------ None Fabricated ------------ Nothing Repaired ---------- Nothing Studied --------- Lgt. Ion Engine | -8/Materials | Hacked Alien Tech Used ----------------- None Achievements -------------- Drive-By Challenges ------------ None Game ------ Seed CatalystVoltaicAxe Manual? 0 Play Time 00:52:47 Cumulative 430.2 hours Start 2026.07.07 @ 16:25:56 End 2026.07.07 @ 17:29:47 Sessions 1 Manual Loads 0 Difficulty Rogue Special Mode None Game No. 394 Rogue 394 Adventurer 0 Explorer 0 Win Type - Total 11 Types 7/0/2/1/0/0/0/0/0/1 Lore% 61 Gallery% 68 Achievement% 64 Wizard Run 0 Options --------- Layout 1 ASCII 0 Keyboard 0 Movement Mouse Keybinds 0 Fullscreen 2 Font 24/Cog Map View 50x35 Zoom Use 12% Tactical HUD 1 Map Filters NONE Filters NONE Steam 1 RUN: cf2055e8-f08c-44a2-aa23-be6e015ba557